fUST/lending_fUST_20240817
["ID","MTS","AMOUNT","RATE_DAILY","PERIOD"]
[335103323,1723826846548,-177.059266,0.00273973,120]
[335103324,1723826846569,-177.059266,0.00273973,120]
[335103325,1723826846592,-151.0,0.00273973,120]
[335103326,1723826846613,-151.0,0.00273973,120]
[335103327,1723826846634,-151.0,0.00273973,120]
[335103328,1723826846655,-151.0,0.00273973,120]
[335103329,1723826846676,-151.0,0.00273973,120]
[335103330,1723826846701,-151.0,0.00273973,120]
[335103331,1723826846723,-151.0,0.00273973,120]
[335103332,1723826846744,-151.0,0.00273973,120]
[335103333,1723826846764,-151.0,0.00273973,120]
[335103334,1723826846788,-151.0,0.00273973,120]
[335103335,1723826846809,-151.0,0.00273973,120]
[335103336,1723826846830,-151.0,0.00273973,120]
[335103337,1723826846852,-151.0,0.00273973,120]
[335103338,1723826846873,-151.0,0.00273973,120]
[335103339,1723826846896,-151.0,0.00273973,120]
[335103340,1723826846921,-186.004676,0.00273973,120]
[335103341,1723826846944,-151.0,0.00273973,120]
[335103342,1723826846965,-152.68378,0.00273973,120]
[335103343,1723826846989,-315.291062,0.00273973,120]
[335103344,1723826847011,-315.291062,0.00273973,120]
[335103345,1723826847035,-315.291062,0.00273973,120]
[335103346,1723826847136,-315.291062,0.00273973,120]
[335103347,1723826847159,-151.0,0.00273973,120]
[335103348,1723826847180,-315.291062,0.00273973,120]
[335103349,1723826847201,-315.291062,0.00273973,120]
[335103350,1723826847222,-315.291062,0.00273973,120]
[335103351,1723826847245,-315.291062,0.00273973,120]
[335103352,1723826847267,-315.291062,0.00273973,120]
[335103353,1723826847295,-315.291062,0.00273973,120]
[335103354,1723826847318,-315.291062,0.00273973,120]
[335103355,1723826847340,-315.291062,0.00273973,120]
[335103356,1723826847364,-315.291062,0.00273973,120]
[335103357,1723826847387,-315.291062,0.00273973,120]
[335103358,1723826847410,-315.291062,0.00273973,120]
[335103359,1723826847433,-315.291062,0.00273973,120]
[335103360,1723826847455,-315.291062,0.00273973,120]
[335103361,1723826847477,-315.291062,0.00273973,120]
[335103362,1723826847499,-315.291062,0.00273973,120]
[335103363,1723826847521,-315.291068,0.00273973,120]
[335103364,1723826847546,-151.0,0.00273973,120]
[335103365,1723826847566,-152.754237,0.00273973,120]
[335103366,1723826847586,-151.0,0.00273973,120]
[335103367,1723826847606,-374.940516,0.00273973,120]
[335103368,1723826847628,-374.940516,0.00273973,120]
[335103369,1723826847648,-374.940516,0.00273973,120]
[335103370,1723826847669,-374.940516,0.00273973,120]
[335103371,1723826847689,-374.940516,0.00273973,120]
[335103372,1723826847710,-374.940516,0.00273973,120]
[335103373,1723826847731,-374.940516,0.00273973,120]
[335103374,1723826847752,-374.940516,0.00273973,120]
[335103375,1723826847772,-374.940516,0.00273973,120]
[335103376,1723826847795,-374.940516,0.00273973,120]
[335103377,1723826847816,-374.940516,0.00273973,120]
[335103378,1723826847837,-374.940516,0.00273973,120]
[335103379,1723826847857,-374.940516,0.00273973,120]
[335103380,1723826847876,-374.940516,0.00273973,120]
[335103381,1723826847898,-374.940516,0.00273973,120]
[335103382,1723826847923,-374.940516,0.00273973,120]
[335103383,1723826847945,-374.940516,0.00273973,120]
[335103384,1723826847966,-374.940516,0.00273973,120]
[335103385,1723826847987,-374.940516,0.00273973,120]
[335103386,1723826848009,-374.94052,0.00273973,120]
[335103387,1723826848036,-151.0,0.00273973,120]
[335103388,1723826848057,-151.0,0.00273973,120]
[335103389,1723826848079,-195.388848,0.00273973,120]
[335103390,1723826848101,-151.0,0.00273973,120]
[335103391,1723826848123,-151.0,0.00273973,120]
[335103392,1723826848145,-151.0,0.00273973,120]
[335103393,1723826848166,-255.0,0.00273973,120]
[335103394,1723826848188,-151.0,0.00273973,120]
[335103395,1723826848209,-151.0,0.00273973,120]
[335103396,1723826848231,-151.0,0.00273973,120]
[335103397,1723826848253,-151.0,0.00273973,120]
[335103398,1723826848275,-151.0,0.00273973,120]
[335103399,1723826848297,-151.0,0.00273973,120]
[335103400,1723826848318,-151.0,0.00273973,120]
[335103401,1723826848339,-151.0,0.00273973,120]
[335103402,1723826848360,-223.707864,0.00273973,120]
[335103403,1723826848381,-151.0,0.00273973,120]
[335103404,1723826848402,-151.0,0.00273973,120]
[335103405,1723826848423,-151.0,0.00273973,120]
[335103406,1723826848445,-151.0,0.00273973,120]
[335103407,1723826848466,-151.0,0.00273973,120]
[335103408,1723826848487,-151.0,0.00273973,120]
[335103409,1723826848513,-151.0,0.00273973,120]
[335103410,1723826848544,-151.0,0.00273973,120]
[335103411,1723826848567,-151.0,0.00273973,120]
[335103412,1723826848589,-151.0,0.00273973,120]
[335103413,1723826848613,-296.570401,0.00273973,120]
[335103414,1723826848634,-160.518571,0.00273973,120]
[335103415,1723826848656,-200.0,0.00273973,120]
[335103416,1723826848676,-1000.0,0.00275,120]
[335103417,1723826848697,-400.0,0.00275342,120]
[335103418,1723826848718,-1000.0,0.00295,120]
[335103419,1723826848739,-1000.0,0.00315,120]
[335103420,1723826848759,-154.74467129,0.00332083,2]
[335103421,1723826848780,-1000.0,0.00335,120]
[335103422,1723826848806,-1000.0,0.00355,120]
[335103423,1723826848826,-4000.0,0.0039,120]
[335103424,1723826848852,-3000.0,0.004,120]
[335103425,1723826848872,-1997.0,0.0045,120]
[335103426,1723826848894,-1000.0,0.00455,120]
[335103427,1723826848920,-3781.79208768,0.0048999,120]
[335103428,1723826848944,-4000.0,0.0049,120]
[335103429,1723826848965,-200.0,0.005,120]
[335103430,1723826848988,-3000.0,0.005,120]
[335103431,1723826849009,-324.0,0.005,120]
[335103432,1723826849030,-500.0,0.00547945,120]
[335103433,1723826849052,-323.2,0.00547945,120]
[335103434,1723826849074,-420.05254541,0.00547945,120]
[335103435,1723826849095,-3578.36,0.00547945,120]
[335103436,1723826849115,-500.0,0.00547945,120]
[335103437,1723826849135,-500.0,0.00547945,120]
[335103438,1723826849155,-218.55745459,0.00547945,120]
[335103439,1723826849175,-298.88663571,0.00547945,120]
[335103440,1723826849196,-1250.0,0.00547945,120]
[335103441,1723826849216,-1250.0,0.00547945,120]
[335103442,1723826849236,-1250.0,0.00547945,120]
[335103443,1723826849256,-1250.0,0.00547945,120]
[335103444,1723826849276,-500.0,0.00547945,120]
[335103445,1723826849302,-500.0,0.00547945,120]
[335103446,1723826849321,-2086.86,0.00547945,120]
[335103447,1723826849341,-2086.86,0.00547945,120]
[335103448,1723826849361,-2086.86,0.00547945,120]
[335103449,1723826849381,-2086.86,0.00547945,120]
[335103450,1723826849401,-500.0,0.00547945,120]
[335103451,1723826849421,-500.0,0.00547945,120]
[335103452,1723826849441,-500.0,0.00547945,120]
[335103453,1723826849463,-500.0,0.00547945,120]
[335103454,1723826849483,-508.34465431,0.00547945,120]
[335103455,1723826849503,-1000.0,0.00555,120]
[335103456,1723826849523,-4000.0,0.0059,120]
[335103457,1723826849547,-200.0,0.006,120]
[335103458,1723826849567,-3000.0,0.006,120]
[335103459,1723826849586,-324.0,0.006,120]
[335103460,1723826849606,-1000.0,0.00655,120]
[335103461,1723826849627,-3781.79208768,0.00689989,120]
[335103462,1723826849646,-4000.0,0.0069,120]
[335103463,1723826849666,-324.0,0.007,120]
[335103464,1723826849686,-200.0,0.007,120]
[335103465,1723826849777,-1000.0,0.00755,120]
[335103466,1723826849802,-200.0,0.008,120]
[335103467,1723826849823,-324.0,0.008,120]
[335103468,1723826849845,-1250.0,0.00842499,120]
[335103469,1723826849865,-2086.86,0.00842499,120]
[335103470,1723826849886,-2000.0,0.008425,120]
[335103471,1723826849911,-1000.0,0.00855,120]
[335103472,1723826849935,-200.0,0.009,120]
[335103473,1723826849959,-2000.0,0.009,120]
[335103474,1723826849982,-324.0,0.009,120]
[335103475,1723826850005,-648.14673617,0.00909074,7]
[335103476,1723826850026,-12868.0,0.00933,120]
[335103477,1723826850052,-3781.79208768,0.0098988,120]
[335103478,1723826850074,-15127.1683507,0.0098989,120]
[335103479,1723826850094,-221635.40883101,0.009899,120]
[335103480,1723826850117,-300.0,0.01,120]
[335103481,1723826850138,-150.0,0.01,120]
[335103482,1723826850157,-150.0,0.01,120]
[335103483,1723826850177,-200.0,0.01,120]
[335103484,1723826850197,-166.91,0.01,120]
[335103485,1723826850218,-324.0,0.01,120]
[335103486,1723826850276,1081.58,0.0099,60]
[335103487,1723826850301,557.99974261,0.00749707,28]
[335103488,1723826850332,3652.03770105,0.009899,120]
[335103489,1723826857766,371.5,0.0099,120]
[335103490,1723826866667,151.0,0.00273973,120]
[335103491,1723826866743,3429.26,0.00547945,120]
[335103492,1723826866994,158.860855,0.00273973,120]
[335103493,1723826867079,3429.26,0.00547945,120]
[335103494,1723826867354,3429.26,0.00547945,120]
[335103495,1723826867664,3429.26,0.00599999,120]
[335103496,1723826892520,151.0,0.0003,120]
[335103497,1723826895987,202.9785281,0.00727259,2]
[335103498,1723826907335,99999.9,0.005555,120]
[335103499,1723826915053,1000.0,0.0068,120]
[335103500,1723826919951,1000.0,0.0065,120]
[335103501,1723826921679,1000.0,0.0062,120]
[335103502,1723826923928,2500.0,0.0089,120]
[335103505,1723826925537,1000.0,0.0059,120]
[335103506,1723826927179,1000.0,0.0056,120]
[335103507,1723826928186,12868.0,0.00933,120]
[335103508,1723826931093,1000.0,0.0053,120]
[335103509,1723826936990,989.58,0.00547945,120]
[335103510,1723826937262,989.58,0.00547945,120]
[335103511,1723826937656,989.58,0.00547945,120]
[335103512,1723826937764,7000.000343,0.01,120]
[335103513,1723826937839,989.58,0.00547945,120]
[335103514,1723826938136,989.58,0.00547945,120]
[335103515,1723826938391,989.58,0.00599998,120]
[335103516,1723826938753,989.58,0.00932999,120]
[335103517,1723826939053,989.58,0.00989899,120]
[335103518,1723826939319,989.58,0.00989899,120]
[335103519,1723826939628,989.58,0.00989899,120]
[335103520,1723826939901,989.58,0.00989899,120]
[335103521,1723826940324,989.58,0.00989899,120]
[335103531,1723826953993,432.09782411,0.00727259,7]
[335103532,1723826955917,198.20376709,0.00727259,2]
[335103581,1723827031921,-453.0,0.0003,120]
[335103582,1723827031931,-10487.81927156,0.00039701,30]
[335103583,1723827031941,-1652.1,0.00547945,120]
[335103584,1723827031950,-1652.1,0.00547945,120]
[335103585,1723827031960,-1652.1,0.00547945,120]
[335103587,1723827031972,-1652.1,0.00547945,120]
[335103589,1723827031981,-1652.1,0.00547945,120]
[335103591,1723827031990,-1652.1,0.00599998,120]
[335103593,1723827032000,-172.85578042,0.00664164,7]
[335103595,1723827032010,-36231.53266428,0.00664164,15]
[335103635,1723827037940,-1652.1,0.00932999,120]
[335103636,1723827037950,-12799.84743057,0.009898,120]
[335103637,1723827038045,-1652.1,0.00989899,120]
[335103638,1723827038055,-1652.1,0.00989899,120]
[335103639,1723827038065,-1652.1,0.00989899,120]
[335103640,1723827038075,-1652.1,0.00989899,120]
[335103641,1723827038084,-1652.1,0.00989899,120]
[335103642,1723827038094,-2500.0,0.0099,120]
[335103643,1723827038103,-324.0,0.011,120]
[335103644,1723827038113,-324.0,0.012,120]
[335103645,1723827038125,-324.0,0.013,120]
[335103646,1723827038138,-324.0,0.014,120]
[335103647,1723827038148,-1081.58,0.014,60]
[335103648,1723827038158,-371.5,0.014,120]
[335103649,1723827038169,-23124.0,0.01489,120]
[335103650,1723827038183,-324.0,0.015,120]
[335103651,1723827038193,-2000.0,0.015,90]
[335103652,1723827038202,-324.0,0.016,120]
[335103653,1723827038212,-10000.0,0.0168,120]
[335103654,1723827038221,-324.0,0.017,120]
[335103656,1723827038230,-10000.0,0.0178,120]
[335103657,1723827038240,-324.0,0.018,120]
[335103658,1723827038250,-1081.58,0.0185,60]
[335103659,1723827038259,-371.5,0.0185,120]
[335103660,1723827038270,-10000.0,0.0188,120]
[335103661,1723827038280,-324.0,0.019,120]
[335103662,1723827038289,-224.0,0.019,120]
[335103663,1723827038298,-12868.0,0.01933,120]
[335103664,1723827038308,-10000.0,0.0198,120]
[335103665,1723827038317,-989.58,0.01999988,120]
[335103666,1723827038327,-1652.1,0.01999988,120]
[335103667,1723827038337,-300.0,0.02,120]
[335103668,1723827038346,-2000.0,0.02,120]
[335103669,1723827038355,-324.0,0.02,120]
[335103670,1723827038365,-2000.0,0.02,90]
[335103671,1723827038375,-224.0,0.02,120]
[335103672,1723827038384,-10000.0,0.0208,120]
[335103673,1723827038395,-324.0,0.021,120]
[335103674,1723827038404,-224.0,0.021,120]
[335103675,1723827038414,-10000.0,0.0218,120]
[335103676,1723827038433,-324.0,0.022,120]
[335103677,1723827038442,-224.0,0.022,120]
[335103678,1723827038451,-1081.58,0.0225,60]
[335103679,1723827038460,-371.5,0.0225,120]
[335103680,1723827038469,-10000.0,0.0228,120]
[335103681,1723827038478,-324.0,0.023,120]
[335103682,1723827038488,-224.0,0.023,120]
[335103683,1723827038497,-10000.0,0.0238,120]
[335103684,1723827038507,-324.0,0.024,120]
[335103685,1723827038516,-224.0,0.024,120]
[335103686,1723827038525,-10000.0,0.0248,120]
[335103687,1723827038534,-300.0,0.025,120]
[335103688,1723827038543,-324.0,0.025,120]
[335103689,1723827038553,-224.0,0.025,120]
[335103690,1723827038562,-10000.0,0.0258,120]
[335103691,1723827038571,-324.0,0.026,120]
[335103692,1723827038581,-224.0,0.026,120]
[335103693,1723827038590,-10000.0,0.0268,120]
[335103694,1723827038600,-324.0,0.027,120]
[335103695,1723827038609,-224.0,0.027,120]
[335103696,1723827038618,-1081.58,0.0271,60]
[335103697,1723827038627,-10000.0,0.0278,120]
[335103698,1723827038637,-324.0,0.028,120]
[335103699,1723827038646,-224.0,0.028,120]
[335103700,1723827038656,-10000.0,0.0288,120]
[335103701,1723827038665,-324.0,0.029,120]
[335103702,1723827038675,-224.0,0.029,120]
[335103703,1723827038685,-12868.0,0.02933,120]
[335103704,1723827038694,-10000.0,0.0298,120]
[335103705,1723827038704,-300.0,0.03,120]
[335103706,1723827038713,-6786.36864653,0.03,7]
[335103707,1723827038722,-324.0,0.03,120]
[335103708,1723827038731,-201.57137716,0.03,2]
[335103709,1723827038740,-155.0,0.03,120]
[335103710,1723827038749,-224.0,0.03,120]
[335103711,1723827038759,-10000.0,0.0308,120]
[335103712,1723827038768,-324.0,0.031,120]
[335103713,1723827038777,-1081.58,0.031,60]
[335103714,1723827038787,-224.0,0.031,120]
[335103715,1723827038796,-10000.0,0.0318,120]
[335103716,1723827038806,-324.0,0.032,120]
[335103717,1723827038815,-224.0,0.032,120]
[335103718,1723827038825,-10000.0,0.0328,120]
[335103719,1723827038834,-324.0,0.033,120]
[335103720,1723827038844,-224.0,0.033,120]
[335103721,1723827038853,-155.0,0.03333,120]
[335103722,1723827038863,-2000.0,0.0334,120]
[335103723,1723827038873,-10000.0,0.0338,120]
[335103724,1723827038882,-324.0,0.034,120]
[335103725,1723827038891,-224.0,0.034,120]
[335103726,1723827038901,-10000.0,0.0348,120]
[335103727,1723827038910,-300.0,0.035,120]
[335103728,1723827038920,-1081.58,0.035,60]
[335103729,1723827038930,-19999.0,0.035,120]
[335103730,1723827038940,-224.0,0.035,120]
[335103731,1723827038949,-989.58,0.03579571,120]
[335103732,1723827038958,-1652.1,0.03579571,120]
[335103733,1723827038970,-10000.0,0.0358,120]
[335103734,1723827038980,-224.0,0.036,120]
[335103735,1723827038989,-10000.0,0.0368,120]
[335103736,1723827038999,-224.0,0.037,120]
[335103737,1723827039008,-1600.525566,0.03727217,63]
[335103738,1723827039018,-1600.525566,0.03727217,63]
[335103739,1723827039027,-10000.0,0.0378,120]
[335103740,1723827039037,-2078.000001,0.038,120]
[335103741,1723827039049,-224.0,0.038,120]
[335103742,1723827039058,-10000.0,0.0388,120]
[335103743,1723827039069,-1951.9,0.039,111]
[335103744,1723827039078,-14887.223399,0.039,120]
[335103745,1723827039088,-224.0,0.039,120]
[335103746,1723827039097,-564.0,0.03933,120]
[335103747,1723827039107,-10000.0,0.0398,120]
[335103748,1723827039116,-300.0,0.04,120]
[335103749,1723827039125,-1789.51203648,0.04,120]
[335103750,1723827039135,-155.0,0.04,120]
[335103751,1723827039145,-2000.0,0.04,90]
[335103752,1723827039154,-224.0,0.04,120]
[335103753,1723827039164,-1352.9,0.04027,116]
[335103754,1723827039174,-326.19,0.0403,120]
[335103755,1723827039183,-10000.0,0.0408,120]
[335103756,1723827039194,-224.0,0.041,120]
[335103757,1723827039205,-10000.0,0.0418,120]
[335103758,1723827039216,-1134.5376263,0.0419999,120]
[335103759,1723827039225,-10065.34877349,0.042,120]
[335103760,1723827039234,-224.0,0.042,120]
[335103761,1723827039243,-10000.0,0.0428,120]
[335103762,1723827039252,-224.0,0.043,120]
[335103763,1723827039262,-10000.0,0.0438,120]
[335103764,1723827039271,-224.0,0.044,120]
[335103765,1723827039280,-155.0,0.04444,120]
[335103766,1723827039289,-1081.58,0.0445,60]
[335103767,1723827039298,-371.5,0.0445,120]
[335103768,1723827039308,-10000.0,0.0448,120]
[335103769,1723827039317,-300.0,0.045,120]
[335103770,1723827039326,-239.5346608,0.045,120]
[335103771,1723827039335,-25350.0,0.045,120]
[335103772,1723827039344,-224.0,0.045,120]
[335103773,1723827039353,-5024.335,0.0455,120]
[335103774,1723827039363,-10000.0,0.0458,120]
[335103775,1723827039372,-224.0,0.046,120]
[335103776,1723827039381,-151.061167,0.046,120]
[335103777,1723827039392,-326.19,0.046,120]
[335103778,1723827039403,-200.0,0.046,120]
[335103779,1723827039412,-10000.0,0.0468,120]
[335103780,1723827039425,-2022.35772183,0.047,120]
[335103781,1723827039434,-150.0,0.047,120]
[335103782,1723827039444,-200.0,0.047,120]
[335103783,1723827039453,-224.0,0.047,120]
[335103785,1723827039463,-10000.0,0.0478,120]
[335103786,1723827039472,-150.0,0.048,120]
[335103787,1723827039481,-200.0,0.048,120]
[335103788,1723827039491,-224.0,0.048,120]
[335103789,1723827039499,-10000.0,0.0488,120]
[335103790,1723827039509,-1768.69708,0.0489,111]
[335103791,1723827039519,-150.0,0.049,120]
[335103792,1723827039530,-200.0,0.049,120]
[335103793,1723827039539,-224.0,0.049,120]
[335103795,1723827039549,-10000.0,0.0498,120]
[335103797,1723827039559,-558.70509391,0.049999,30]
[335103798,1723827039569,-989.58,0.04999998,120]
[335103800,1723827039578,-1652.1,0.04999998,120]
[335103802,1723827039587,-3429.26,0.04999999,120]
[335103804,1723827039596,-3429.26,0.04999999,120]
[335103805,1723827039606,-989.58,0.04999999,120]
[335103806,1723827039616,-1652.1,0.04999999,120]
[335103807,1723827039626,-300.0,0.05,120]
[335103808,1723827039636,-519.88627114,0.05,30]
[335103809,1723827039648,-150.0,0.05,120]
[335103810,1723827039658,-155.0,0.05,120]
[335103811,1723827039668,-1460.253,0.05,80]
[335103813,1723827039683,-1081.58,0.05,60]
[335103814,1723827039692,-371.5,0.05,120]
[335103815,1723827039702,-200.0,0.05,120]
[335103816,1723827039711,-242.19080258,0.05,120]
[335103817,1723827039720,-1353.926108,0.05,80]
[335103818,1723827039730,-10000.0,0.0508,120]
[335103819,1723827039739,-10000.0,0.0518,120]
[335103820,1723827039748,-340.48888799,0.05238722,30]
[335103831,1723827042437,-218.21620591,0.05238722,30]
[335103833,1723827042448,-10000.0,0.0528,120]
[335103835,1723827042458,-1423.774,0.053,111]
[335103837,1723827042467,-10000.0,0.0538,120]
[335103839,1723827042477,-1606.114325,0.054,98]
[335103841,1723827042487,-1606.114325,0.054,98]
[335103843,1723827042497,-19000.46810886,0.05410106,120]
[335103845,1723827042507,-1729.1,0.0547253,79]
[335103848,1723827042517,-558.7050939,0.05477544,30]
[335103850,1723827042527,-1134.5376263,0.05479442,120]
[335103851,1723827042537,-989.58,0.05479451,120]
[335103852,1723827042547,-1652.1,0.05479451,120]
[335103853,1723827042557,-10000.0,0.0548,120]
[335103856,1723827042568,-300.0,0.055,120]
[335103858,1723827042577,-155.0,0.05555,120]
[335103859,1723827042587,-10000.0,0.0558,120]
[335103860,1723827042597,-10000.0,0.0568,120]
[335103861,1723827042607,-989.58,0.05699898,120]
[335103862,1723827042618,-1652.1,0.05699898,120]
[335103863,1723827042628,-558.7050939,0.05716367,30]
[335103864,1723827042638,-200.0,0.0574747,120]
[335103865,1723827042647,-200.0,0.0574747,120]
[335103866,1723827042657,-155.0,0.05777,120]
[335103867,1723827042667,-10000.0,0.0578,120]
[335103868,1723827042679,-10000.0,0.0588,120]
[335103869,1723827042689,-1081.58,0.059,60]
[335103870,1723827042699,-371.5,0.059,120]
[335103871,1723827042708,-2999.999999,0.059,120]
[335103872,1723827042718,-300.0,0.059,120]
[335103873,1723827042728,-1134.5376263,0.05955179,120]
[335103875,1723827042737,-558.7050939,0.05955189,30]
[335103876,1723827042747,-468740.74722781,0.05968,120]
[335103881,1723827044038,-570.0,0.00789041,120]
[335103913,1723827046247,-8.0,0.00789041,120]
[335103914,1723827046257,-578.0,0.00789041,120]
[335103915,1723827046268,-52.61,0.00789041,120]
[335103916,1723827119507,1376.57028826,0.00012628,2]
[335103917,1723827119533,526.47172859,0.00012628,2]
[335103918,1723827124009,543.73594479,0.00011621,2]
[335103919,1723827129799,493.03932546,0.00012991,2]
[335103920,1723827130595,5349.10968029,0.00013971,2]
[335103925,1723827944046,-267.39548537,0.0001026,2]
[335103926,1723827946089,-630.97449815,0.0001026,2]
[335103927,1723827946110,-300.0,0.00012999,2]
[335103928,1723827946131,-2981.82617472,0.00013,2]
[335103937,1723828038107,-404.2385044,0.00012991,2]
[335103938,1723828038131,-300.0,0.00012999,2]
[335103939,1723828038153,-260.02260266,0.00012999,2]
[335103940,1723828038174,-295.23903243,0.00012999,2]
[335103941,1723828038196,-16396.70534329,0.00013,2]
[335103942,1723828038217,-574.81117145,0.00013025,2]
[335103943,1723828038238,-493.03932546,0.00013025,2]
[335103944,1723828038260,-309.48934258,0.00013025,2]
[335103945,1723828038282,-156.81279309,0.00013051,2]
[335103946,1723828038306,-665.1114012,0.00013599,2]
[335103947,1723828038328,-897.94257246,0.00014519,2]
[335103948,1723828038350,-5242.47821719,0.00015757,2]
[335103949,1723828038371,-1110.39279741,0.00016499,2]
[335103950,1723828038400,-782.12449386,0.00016915,2]
[335103951,1723828038422,-650.0,0.0001942,2]
[335103952,1723828038445,-6587.316056,0.00019421,2]
[335103953,1723828038467,-242.29053124,0.0002,2]
[335103954,1723828038488,-952.97302419,0.00024756,2]
[335103955,1723828038509,-151.0,0.0003,120]
[335103956,1723828038532,-151.0,0.0003,120]
[335103957,1723828038558,-12681.0364325,0.00031,15]
[335103958,1723828038585,-166.666674,0.0004274,2]
[335103959,1723828038610,-1375.68208424,0.00045951,14]
[335103960,1723828038636,-150.0,0.00062,120]
[335103961,1723828038660,-150.0,0.00063,120]
[335103962,1723828038685,-200.0,0.00064,120]
[335103963,1723828038710,-166.666674,0.00089863,120]
[335103964,1723828038736,-166.666674,0.00136986,120]
[335103965,1723828038761,-2000.0,0.0025,120]
[335103966,1723828038786,-3000.0,0.0026,120]
[335103967,1723828038811,-667.61241206,0.00273873,120]
[335103968,1723828038836,-8885.47023442,0.00273963,60]
[335103969,1723828038861,-151.0,0.00273973,120]
[335103970,1723828038887,-151.0,0.00273973,120]
[335103971,1723828038913,-151.0,0.00273973,120]
[335103972,1723828038938,-151.0,0.00273973,120]
[335103973,1723828038963,-226.5,0.00273973,120]
[335103974,1723828038988,-151.0,0.00273973,120]
[335103975,1723828039012,-151.0,0.00273973,120]
[335103976,1723828039037,-151.0,0.00273973,120]
[335103977,1723828039062,-151.0,0.00273973,120]
[335103978,1723828039087,-151.0,0.00273973,120]
[335103979,1723828039112,-151.0,0.00273973,120]
[335103980,1723828039137,-151.0,0.00273973,120]
[335103981,1723828039161,-151.0,0.00273973,120]
[335103982,1723828039185,-151.0,0.00273973,120]
[335103983,1723828039210,-203.508808,0.00273973,120]
[335103984,1723828039235,-239.491002,0.00273973,120]
[335103985,1723828039259,-151.0,0.00273973,120]
[335103986,1723828039283,-151.0,0.00273973,120]
[335103987,1723828039313,-151.0,0.00273973,120]
[335103988,1723828039337,-263.916439,0.00273973,120]
[335103989,1723828039362,-151.0,0.00273973,120]
[335103990,1723828039390,-151.0,0.00273973,120]
[335103991,1723828039418,-151.0,0.00273973,120]
[335103992,1723828039443,-151.0,0.00273973,120]
[335103993,1723828039469,-151.0,0.00273973,120]
[335103994,1723828039492,-151.0,0.00273973,120]
[335103995,1723828039515,-151.0,0.00273973,120]
[335103996,1723828039539,-153.001776,0.00273973,120]
[335103997,1723828039562,-153.931496,0.00273973,120]
[335103998,1723828039587,-151.0,0.00273973,120]
[335103999,1723828039613,-151.0,0.00273973,120]
[335104000,1723828039638,-151.0,0.00273973,120]
[335104001,1723828039663,-151.0,0.00273973,120]
[335104002,1723828039686,-151.0,0.00273973,120]
[335104003,1723828039712,-151.0,0.00273973,120]
[335104004,1723828039746,-198.619222,0.00273973,120]